fUST/lending_fUST_20260225
["ID","MTS","AMOUNT","RATE_DAILY","PERIOD"]
[406648405,1772031041644,-500.0,0.00019178,2]
[406648406,1772031041654,-500.0,0.00019178,2]
[406648407,1772031041664,-500.0,0.00019178,2]
[406648408,1772031041674,-500.0,0.00019178,2]
[406648409,1772031041684,-500.0,0.00019178,2]
[406648410,1772031041693,-500.0,0.00019178,2]
[406648411,1772031041703,-500.0,0.00019178,2]
[406648412,1772031041713,-500.0,0.00019178,2]
[406648413,1772031041722,-500.0,0.00019178,2]
[406648414,1772031041732,-500.0,0.00019178,2]
[406648415,1772031041741,-500.0,0.00019178,2]
[406648416,1772031041751,-942.95912052,0.000196,2]
[406648417,1772031041760,-1098.47925953,0.0001967,2]
[406648418,1772031041770,-385.45336295,0.00019865,2]
[406648419,1772031041779,-4451.62735987,0.00019866,2]
[406648420,1772031042109,-155266.24733301,0.00019866,2]
[406648421,1772031042119,-487.0,0.00019866,2]
[406648422,1772031042129,-487.0,0.00019866,2]
[406648423,1772031042138,-487.0,0.00019866,2]
[406648424,1772031042147,-487.0,0.00019866,2]
[406648425,1772031042157,-487.0,0.00019866,2]
[406648426,1772031042169,-487.0,0.00019866,2]
[406648427,1772031042178,-487.0,0.00019866,2]
[406648428,1772031042188,-487.0,0.00019866,2]
[406648429,1772031042198,-487.0,0.00019866,2]
[406648430,1772031042210,-487.0,0.00019866,2]
[406648431,1772031042221,-487.0,0.00019866,2]
[406648432,1772031042230,-487.0,0.00019866,2]
[406648433,1772031042241,-487.0,0.00019866,2]
[406648434,1772031042250,-487.0,0.00019866,2]
[406648435,1772031042260,-698.01,0.00019866,2]
[406648436,1772031042269,-17685.33276808,0.0001988,2]
[406648437,1772031042278,-10896.07589973,0.000199,2]
[406648438,1772031042288,-733.500169,0.00019935,2]
[406648439,1772031042297,-1076.6151087,0.00019965,2]
[406648440,1772031042307,-209.40437684,0.00019988,2]
[406648441,1772031042318,-217.15233878,0.00019988,2]
[406648442,1772031042327,-225.18697532,0.00019988,2]
[406648443,1772031042337,-233.51889341,0.00019988,2]
[406648444,1772031042346,-242.15909246,0.00019988,2]
[406648445,1772031042355,-251.11897888,0.00019988,2]
[406648446,1772031042364,-260.4103811,0.00019988,2]
[406648447,1772031042373,-270.0455652,0.00019988,2]
[406648448,1772031042383,-280.03725112,0.00019988,2]
[406648449,1772031042392,-290.39862941,0.00019988,2]
[406648450,1772031042401,-301.1433787,0.00019988,2]
[406648451,1772031042410,-500.0,0.00019988,2]
[406648452,1772031042419,-500.0,0.00019988,2]
[406648453,1772031042428,-111.01421867,0.00019988,2]
[406648454,1772031042441,-388.98578133,0.00019988,2]
[406648455,1772031042450,-475.54728057,0.00019988,2]
[406648545,1772031044561,-500.0,0.00019,7]
[406648547,1772031044570,-266.18398302,0.00019,7]
[406648558,1772031044671,-233.81601698,0.00019,7]
[406648560,1772031044680,-500.0,0.00019,7]
[406648562,1772031044690,-266.18398302,0.00019,7]
[406648676,1772031045780,-233.81601698,0.00019,7]
[406648679,1772031045790,-500.0,0.00019,7]
[406648680,1772031045800,-500.0,0.00019,7]
[406648682,1772031045812,-500.0,0.00019,7]
[406648683,1772031045821,-500.0,0.00019,7]
[406648684,1772031045831,-448.57848204,0.00019,7]
[406648685,1772031045866,-51.42151796,0.00019,7]
[406648686,1772031045876,-500.0,0.00019,7]
[406648687,1772031045886,-24.45271943,0.00019988,2]
[406648688,1772031045895,-500.0,0.00019988,2]
[406648689,1772031045905,-500.0,0.00019988,2]
[406648690,1772031045915,-500.0,0.00019988,2]
[406648691,1772031045926,-500.0,0.00019988,2]
[406648692,1772031045935,-500.0,0.00019988,2]
[406648693,1772031045944,-500.0,0.00019988,2]
[406648694,1772031045954,-500.0,0.00019988,2]
[406648695,1772031045963,-500.0,0.00019988,2]
[406648696,1772031045973,-500.0,0.00019988,2]
[406648697,1772031045983,-500.0,0.00019988,2]
[406648699,1772031045996,-500.0,0.00019988,2]
[406648701,1772031046005,-500.0,0.00019988,2]
[406648702,1772031046015,-500.0,0.00019988,2]
[406648704,1772031046024,-500.0,0.00019988,2]
[406648706,1772031046033,-500.0,0.00019988,2]
[406648708,1772031046043,-500.0,0.00019988,2]
[406648710,1772031046052,-500.0,0.00019988,2]
[406648712,1772031046065,-500.0,0.00019988,2]
[406648714,1772031046075,-150.0,0.00019998,2]
[406648716,1772031046084,-129072.22510349,0.0002,2]
[406648720,1772031046116,-19387.21227386,0.0002,2]
[406648908,1772031643824,-500.0,0.00013699,2]
[406648909,1772031643853,-273.71509027,0.00013973,2]
[406648910,1772031660638,-382.43394569,0.00014247,2]
[406648913,1772031677444,-732.2052,0.00016117,120]
[406648914,1772031677473,-219.6615,0.00016359,14]
[406648915,1772031677499,-150.0,0.00016438,2]
[406648916,1772031677527,-250.0,0.00016986,2]
[406648917,1772031677557,-158.0,0.00017,2]
[406648918,1772031677585,-151.79803902,0.00017534,2]
[406648919,1772031677613,-151.22232488,0.00017808,2]
[406648920,1772031677642,-300.0,0.0001784,2]
[406648921,1772031677787,-5868.70608072,0.00017841,2]
[406648922,1772031706857,-2495.32100959,0.00017792,2]
[406648932,1772032147481,-476.71017436,0.00013273,2]
[406648933,1772032149155,-23.28982564,0.00013273,2]
[406648934,1772032149194,-150.0,0.00013486,2]
[406648935,1772032149232,-500.0,0.00013699,2]
[406648936,1772032149252,-507.68926916,0.00013699,2]
[406648937,1772032149270,-500.0,0.00013699,2]
[406648938,1772032149289,-500.0,0.00013699,2]
[406648939,1772032149309,-718.38188459,0.00013821,2]
[406648940,1772032170088,-500.0,0.00013273,2]
[406648941,1772032170109,-500.0,0.00013273,2]
[406648942,1772032170129,-500.0,0.00013699,2]
[406648943,1772032170148,-500.0,0.00013699,2]
[406648944,1772032170168,-500.0,0.00013699,2]
[406648945,1772032170187,-335.42477212,0.00013821,2]
[406648946,1772032170206,-1000.0,0.00013821,2]
[406648947,1772032170225,-1000.0,0.00013821,2]
[406648948,1772032170246,-800.0,0.0001395,4]
[406648949,1772032170266,-300.0,0.00014246,2]
[406648950,1772032170287,-1000.0,0.00014247,2]
[406648951,1772032170307,-510.77474611,0.00014247,2]
[406648952,1772032170328,-1000.0,0.00014247,2]
[406648953,1772032170348,-349.47268126,0.00014247,2]
[406648954,1772032170367,-1000.0,0.00014247,2]
[406648955,1772032170386,-843.25255061,0.00014247,2]
[406648956,1772032170405,-1500.0,0.00014368,2]
[406648957,1772032170424,-1649.82031415,0.00014368,2]
[406648958,1772032170443,-1500.0,0.00014795,2]
[406648959,1772032170462,-284.27564307,0.00014795,2]
[406648960,1772032170481,-273.93211751,0.00014795,2]
[406648961,1772032170504,-2000.0,0.00014916,2]
[406648962,1772032170523,-2500.0,0.00015464,2]
[406648963,1772032170544,-420.0,0.00015603,2]
[406648964,1772032170565,-2160.14190269,0.00016012,2]
[406648966,1772032207167,156.3,9.5e-05,2]
[406648967,1772032207919,156.3,0.0001,2]
[406648968,1772032208599,156.3,0.000104,2]
[406649017,1772032231954,-491.56070371,0.00013699,2]
[406649020,1772032231964,-652.0,0.00016012,2]
[406649023,1772032231973,-839.85809731,0.00016012,2]
[406649026,1772032231983,-670.10058335,0.0001656,2]
[406649028,1772032231992,-174.19922195,0.00016802,2]
[406649029,1772032232001,-225.30264724,0.0001774,2]
[406649030,1772032232010,-1026.0737148,0.00017741,2]
[406649043,1772032238710,-150.0,0.000166,2]
[406649044,1772032238720,-150.0,0.000171,2]
[406649045,1772032238730,-150.0,0.000177,2]
[406649046,1772032238740,-2131.21562263,0.00017741,2]
[406649047,1772032238751,-465.38136012,0.00017741,2]
[406649048,1772032238763,-867.64001742,0.00017741,2]
[406649049,1772032238773,-200.0,0.00017827,3]
[406649050,1772032238783,-210.12855022,0.00017838,2]
[406649091,1772032246230,-311.06083059,0.00017838,2]
[406649093,1772032246241,-678.81061919,0.00017838,2]
[406649095,1772032246251,-300.0,0.00017839,2]
[406649097,1772032246261,-300.0,0.00017839,2]
[406649100,1772032246271,-300.0,0.00017839,2]
[406649101,1772032246281,-300.0,0.00017839,2]
[406649103,1772032246291,-2634.76174298,0.00017841,2]
[406649106,1772032246302,-3326.9988329,0.00017841,2]
[406649108,1772032246317,-3233.15760876,0.00017991,2]
[406649110,1772032246326,-225.30264723,0.00017991,2]
[406649112,1772032246336,-696.79688779,0.00018023,2]
[406649114,1772032246345,-150.0,0.000182,2]
[406649116,1772032246355,-950.0,0.00018586,2]
[406649119,1772032246365,-950.0,0.00018595,2]
[406649121,1772032246375,-150.0,0.00018726,7]
[406649123,1772032246384,-150.0,0.00018726,7]
[406649125,1772032246393,-1250.0,0.00018726,7]
[406649127,1772032246403,-950.0,0.00018731,2]
[406649129,1772032246412,-302.03869059,0.00018777,2]
[406649131,1772032246422,-209.40437684,0.00018777,2]
[406649133,1772032246431,-352.80688111,0.00018777,2]
[406649135,1772032246440,-500.0,0.00018777,2]
[406649137,1772032246450,-217.15233878,0.00018777,2]
[406649139,1772032246459,-225.18697532,0.00018777,2]
[406649141,1772032246468,-500.0,0.00018777,2]
[406649144,1772032246478,-233.51889341,0.00018777,2]
[406649146,1772032246487,-500.0,0.00018777,2]
[406649148,1772032246497,-242.15909246,0.00018777,2]
[406649150,1772032246511,-500.0,0.00018777,2]
[406649152,1772032246524,-1888.0,0.00018777,2]
[406649154,1772032246533,-251.11897888,0.00018777,2]
[406649156,1772032246543,-500.0,0.00018777,2]
[406649158,1772032246555,-260.4103811,0.00018777,2]
[406649160,1772032246564,-500.0,0.00018777,2]
[406649162,1772032246574,-270.0455652,0.00018777,2]
[406649164,1772032246584,-500.0,0.00018777,2]
[406649166,1772032246594,-500.0,0.00018777,2]
[406649168,1772032246604,-280.03725112,0.00018777,2]
[406649170,1772032246614,-500.0,0.00018777,2]
[406649172,1772032246623,-290.39862941,0.00018777,2]
[406649174,1772032246633,-250.0,0.00018777,2]
[406649176,1772032246642,-500.0,0.00018777,2]
[406649178,1772032246652,-301.1433787,0.00018777,2]
[406649180,1772032246661,-250.0,0.00018777,2]
[406649182,1772032246671,-325.8644315,0.00018777,2]
[406649183,1772032246680,-307.52890313,0.00018777,2]
[406649184,1772032246690,-500.0,0.00018777,2]
[406649185,1772032246700,-500.0,0.00018777,2]
[406649186,1772032246710,-500.0,0.00018777,2]
[406649187,1772032246720,-500.0,0.00018777,2]
[406649188,1772032246730,-500.0,0.00018777,2]
[406649189,1772032246740,-500.0,0.00018777,2]
[406649190,1772032246750,-500.0,0.00018777,2]
[406649192,1772032246759,-500.0,0.00018777,2]
[406649193,1772032246770,-500.0,0.00018777,2]
[406649194,1772032246779,-500.0,0.00018777,2]
[406649195,1772032246789,-500.0,0.00018777,2]
[406649196,1772032246799,-500.0,0.00018777,2]
[406649197,1772032246813,-500.0,0.00018777,2]
[406649199,1772032246824,-500.0,0.00018777,2]
[406649200,1772032246834,-500.0,0.00018777,2]
[406649201,1772032246847,-500.0,0.00018777,2]
[406649203,1772032246857,-500.0,0.00018777,2]
[406649205,1772032246867,-500.0,0.00018777,2]
[406649208,1772032246876,-500.0,0.00018777,2]
[406649210,1772032246886,-500.0,0.00018777,2]
[406649214,1772032246896,-500.0,0.00018777,2]
[406649217,1772032246905,-500.0,0.00018777,2]
[406649219,1772032246915,-150.0,0.00018781,7]
[406649222,1772032246925,-150.0,0.00018781,7]
[406649251,1772032246935,-1250.0,0.00018781,7]
[406649253,1772032247198,-150.0,0.000188,2]
[406649255,1772032247208,-5880.3858806,0.0001881,2]
[406649269,1772032247334,-1118.10578934,0.0001881,2]
[406649271,1772032247344,-5000.0,0.0001881,2]
[406649273,1772032247353,-5000.0,0.0001881,2]
[406649276,1772032247363,-3912.4215469,0.0001881,2]
[406649278,1772032247375,-1087.5784531,0.0001881,2]
[406649280,1772032247385,-950.0,0.00018822,2]
[406649282,1772032247394,-200.0,0.00018836,7]
[406649284,1772032247403,-173.48000028,0.00018836,7]
[406649286,1772032247413,-1250.0,0.00018836,7]
[406649288,1772032247422,-950.0,0.00018868,2]
[406649290,1772032247431,-675.0,0.0001888,2]
[406649292,1772032247441,-1250.0,0.0001889,7]
[406649294,1772032247450,-950.0,0.00018938,2]
[406649296,1772032247459,-1250.0,0.00018945,7]
[406649298,1772032247469,-675.0,0.00018978,2]
[406649300,1772032247479,-30053.12223749,0.0001899,2]
[406649302,1772032247488,-1000.0,0.00018994,5]
[406649304,1772032247498,-500.0,0.00018998,2]
[406649305,1772032247511,-500.0,0.00018998,2]
[406649307,1772032247521,-481.02468789,0.00018999,2]
[406649309,1772032247530,-500.0,0.00018999,2]
[406649311,1772032247540,-1250.0,0.00019,7]
[406649313,1772032247551,-500.0,0.00019,7]
[406649315,1772032247563,-500.0,0.00019,7]
[406649317,1772032247572,-500.0,0.00019,7]
[406649320,1772032247585,-500.0,0.00019,7]
[406649322,1772032247594,-500.0,0.00019,7]
[406649324,1772032247604,-500.0,0.00019,7]
[406649326,1772032247613,-500.0,0.00019,7]
[406649328,1772032247623,-500.0,0.00019,7]
[406649330,1772032247632,-500.0,0.00019,7]
[406649332,1772032247642,-500.0,0.00019,7]
[406649334,1772032247651,-500.0,0.00019,7]
[406649336,1772032247660,-500.0,0.00019,7]
[406649338,1772032247670,-500.0,0.00019,7]
[406649340,1772032247679,-500.0,0.00019,7]
[406649342,1772032247691,-500.0,0.00019,7]
[406649344,1772032247700,-500.0,0.00019,7]
[406649346,1772032247710,-500.0,0.00019,7]
[406649348,1772032247721,-500.0,0.00019,7]
[406649350,1772032247731,-500.0,0.00019,7]
[406649352,1772032247741,-500.0,0.00019,7]
[406649355,1772032247752,-500.0,0.00019,7]
[406649356,1772032247762,-500.0,0.00019,7]
[406649359,1772032247771,-500.0,0.00019,7]
[406649361,1772032247780,-500.0,0.00019,7]
[406649363,1772032247790,-500.0,0.00019,7]
[406649365,1772032247812,-500.0,0.00019,7]
[406649368,1772032247823,-500.0,0.00019,7]
[406649370,1772032247833,-500.0,0.00019,7]
[406649372,1772032247844,-500.0,0.00019,7]
[406649374,1772032247854,-500.0,0.00019,7]
[406649376,1772032247864,-500.0,0.00019,7]
[406649378,1772032247874,-500.0,0.00019,7]
[406649380,1772032247884,-500.0,0.00019,7]
[406649382,1772032247894,-500.0,0.00019,7]
[406649384,1772032247904,-500.0,0.00019,7]
[406649386,1772032247914,-500.0,0.00019,7]
[406649389,1772032247926,-500.0,0.00019,7]
[406649391,1772032247937,-500.0,0.00019,7]
[406649393,1772032247947,-500.0,0.00019,7]
[406649395,1772032247956,-500.0,0.00019,7]
[406649396,1772032247966,-500.0,0.00019,7]
[406649398,1772032247976,-500.0,0.00019,7]
[406649400,1772032247986,-500.0,0.00019,7]
[406649402,1772032247996,-500.0,0.00019,7]
[406649404,1772032248006,-500.0,0.00019,7]
[406649406,1772032248016,-500.0,0.00019,7]
[406649408,1772032248027,-500.0,0.00019,7]
[406649411,1772032248036,-500.0,0.00019,7]
[406649413,1772032248046,-500.0,0.00019,7]
[406649414,1772032248057,-500.0,0.00019,7]
[406649417,1772032248067,-500.0,0.00019,7]
[406649418,1772032248076,-500.0,0.00019,7]
[406649421,1772032248086,-500.0,0.00019,7]
[406649422,1772032248096,-500.0,0.00019,7]
[406649424,1772032248106,-500.0,0.00019,7]
[406649426,1772032248115,-500.0,0.00019,7]
[406649428,1772032248125,-551.42,0.00019,7]
[406649430,1772032248134,-500.0,0.00019,7]
[406649433,1772032248145,-500.0,0.00019,7]
[406649435,1772032248155,-500.0,0.00019,7]
[406649437,1772032248164,-500.0,0.00019,7]
[406649439,1772032248173,-500.0,0.00019,7]
[406649441,1772032248183,-500.0,0.00019,7]
[406649443,1772032248192,-500.0,0.00019,7]
[406649445,1772032248202,-500.0,0.00019,7]
[406649447,1772032248212,-500.0,0.00019,7]
[406649449,1772032248221,-500.0,0.00019,7]
[406649451,1772032248231,-500.0,0.00019,7]
[406649453,1772032248242,-500.0,0.00019,7]
[406649455,1772032248252,-500.0,0.00019,7]
[406649457,1772032248262,-500.0,0.00019,7]
[406649459,1772032248272,-500.0,0.00019,7]
[406649461,1772032248282,-500.0,0.00019,7]
[406649463,1772032248292,-500.0,0.00019,7]
[406649465,1772032248301,-500.0,0.00019,7]
[406649467,1772032248313,-500.0,0.00019,7]
[406649469,1772032248323,-500.0,0.00019,7]
[406649471,1772032248332,-500.0,0.00019,7]
[406649473,1772032248342,-500.0,0.00019,7]
[406649475,1772032248351,-500.0,0.00019,7]
[406649477,1772032248361,-500.0,0.00019,7]
[406649479,1772032248371,-500.0,0.00019,7]
[406649481,1772032248380,-500.0,0.00019,7]
[406649483,1772032248390,-500.0,0.00019,7]
[406649485,1772032248399,-500.0,0.00019,7]
[406649487,1772032248409,-500.0,0.00019,7]
[406649489,1772032248419,-500.0,0.00019,7]
[406649491,1772032248428,-500.0,0.00019,7]
[406649493,1772032248438,-500.0,0.00019,7]
[406649495,1772032248448,-500.0,0.00019,7]
[406649497,1772032248457,-500.0,0.00019,7]
[406649499,1772032248467,-500.0,0.00019,7]
[406649502,1772032248477,-500.0,0.00019,7]
[406649504,1772032248487,-500.0,0.00019,7]
[406649506,1772032248497,-500.0,0.00019,7]
[406649508,1772032248508,-500.0,0.00019,7]
[406649510,1772032248522,-500.0,0.00019,7]
[406649512,1772032248531,-500.0,0.00019,7]
[406649514,1772032248541,-500.0,0.00019,7]
[406649516,1772032248552,-500.0,0.00019,7]
[406649518,1772032248563,-950.0,0.00019004,2]
[406649520,1772032248573,-950.0,0.00019039,2]
[406649522,1772032248584,-1250.0,0.00019055,7]
[406649524,1772032248593,-463.583,0.00019078,2]
[406649526,1772032248603,-1250.0,0.0001911,7]
[406649528,1772032248613,-675.0,0.00019138,2]
[406649530,1772032248623,-950.0,0.00019164,2]
[406649532,1772032248632,-1250.0,0.00019164,7]
[406649534,1772032248642,-1250.0,0.00019219,7]
[406649536,1772032248651,-1567.79299752,0.00019243,2]
[406649538,1772032248666,-1250.0,0.00019274,7]
[406649540,1772032248676,-252.52,0.000193,2]
[406649542,1772032248686,-901.7371489,0.00019324,3]
[406649544,1772032248696,-1250.0,0.00019329,7]
[406649547,1772032248706,-1279.2647,0.00019329,2]
[406649549,1772032248716,-157.64160063,0.00019345,3]
[406649550,1772032248726,-1250.0,0.00019384,7]
[406649552,1772032248737,-4490.31071496,0.00019427,2]
[406649555,1772032248747,-1250.0,0.00019438,7]
[406649557,1772032248758,-950.0,0.00019456,2]
[406649559,1772032248769,-420.0,0.00019467,2]
[406649561,1772032248779,-1250.0,0.00019493,7]
[406649563,1772032248789,-950.0,0.00019535,2]
[406649565,1772032248799,-500.0,0.00019537,2]
[406649567,1772032248809,-950.0,0.0001954,2]
[406649569,1772032248819,-1250.0,0.00019548,7]
[406649571,1772032248829,-1680.0,0.00019562,2]
[406649573,1772032248839,-805.1953,0.00019589,3]
[406649575,1772032248850,-167.92784982,0.00019591,3]
[406649577,1772032248860,-305.03850322,0.00019591,3]
[406649579,1772032248870,-774.62172725,0.00019591,3]
[406649581,1772032248880,-333.91045498,0.00019591,3]
[406649583,1772032248890,-513.51968337,0.00019591,3]
[406649586,1772032248900,-158.0,0.000196,3]
[406649588,1772032248910,-1100.11897395,0.000196,2]
[406649590,1772032248920,-1250.0,0.00019603,7]
[406649592,1772032248929,-500.0,0.00019605,2]
[406649594,1772032248939,-950.0,0.00019606,2]
[406649596,1772032248949,-464.48345144,0.00019643,3]
[406649598,1772032248959,-659.57145893,0.00019646,3]
[406649600,1772032248969,-445.63,0.00019648,3]
[406649602,1772032248980,-1250.0,0.00019658,7]
[406649604,1772032248990,-950.0,0.00019674,2]
[406649606,1772032249000,-1250.0,0.00019712,7]
[406649608,1772032249010,-1867.756386,0.0001975,2]
[406649610,1772032249023,-935.32822837,0.0001976,2]
[406649612,1772032249034,-334.12274905,0.0001976,2]
[406649614,1772032249044,-582.57154604,0.0001976,2]
[406649616,1772032249055,-231.50243548,0.0001976,2]
[406649618,1772032249065,-926.00974192,0.0001976,2]
[406649620,1772032249075,-2083.52191933,0.0001976,2]
[406649622,1772032249085,-1250.0,0.00019767,7]
[406649624,1772032249094,-378.81065964,0.0001978,2]
[406649627,1772032249105,-950.0,0.00019781,2]
[406649629,1772032249115,-3493.0930437,0.00019788,2]
[406649631,1772032249125,-2740.0947024,0.00019788,2]
[406649633,1772032249135,-158.0,0.000198,2]
[406649635,1772032249145,-29963.45696568,0.000198,2]
[406649752,1772032541355,347.42,0.00012001,2]
[406649754,1772033208147,-268.83864496,0.00012344,2]
[406649756,1772033264707,2206.37,0.00012001,2]
[406649757,1772033408949,284.89,9.5e-05,2]
[406649758,1772033409498,284.89,9.5e-05,2]
[406649759,1772033410489,284.89,9.5e-05,2]
[406649760,1772033411156,284.89,9.6e-05,2]
[406649761,1772033411679,284.89,9.6e-05,2]
[406649762,1772033412749,284.89,9.6e-05,2]
[406649763,1772033414052,284.89,9.6e-05,2]
[406649764,1772033415087,284.89,9.6e-05,2]
[406649765,1772033415772,284.89,9.7e-05,2]
[406649766,1772033418264,284.89,9.7e-05,2]
[406649767,1772033418542,284.89,9.7e-05,2]
[406649768,1772033419625,284.89,9.7e-05,2]
[406649769,1772033420158,284.89,9.7e-05,2]
[406649770,1772033420890,284.89,9.8e-05,2]
[406649771,1772033421417,284.89,9.8e-05,2]
[406649772,1772033422351,284.89,9.8e-05,2]
[406649773,1772033422879,284.89,9.8e-05,2]
[406649774,1772033424271,284.89,9.8e-05,2]
[406649775,1772033424879,284.89,9.8e-05,2]
[406649776,1772033425396,284.89,9.9e-05,2]
[406649777,1772033425983,284.89,9.9e-05,2]
[406649778,1772033427010,284.89,9.9e-05,2]
[406649779,1772033427677,284.89,9.9e-05,2]
[406649780,1772033429004,284.89,9.9e-05,2]
[406649781,1772033429702,284.89,0.0001,2]
[406649782,1772033430397,284.89,0.0001,2]
[406649783,1772033431103,284.89,0.0001,2]
[406649807,1772033431906,284.89,0.0001,2]
[406649841,1772033433158,-275.61238928,0.00012037,2]
[406649842,1772033433170,-314.38761072,0.00012037,2]
[406649843,1772033433179,-891.3627678,0.00012037,2]
[406649844,1772033433189,-150.0,0.00012183,2]
[406649845,1772033433197,-200.0,0.00012222,2]
[406649846,1772033433207,-1200.0,0.00012327,2]
[406649847,1772033433216,-300.0,0.00012328,2]
[406649848,1772033433226,-246.0,0.00012328,2]
[406649849,1772033433236,-300.0,0.00012328,2]
[406649850,1772033433245,-300.0,0.00012328,2]
[406649851,1772033433254,-300.0,0.00012328,2]
[406649852,1772033433264,-1179.13,0.00012329,2]
[406649853,1772033433273,-982.61,0.00012329,2]
[406649854,1772033433283,-204.71,0.00012329,2]
[406649855,1772033433292,-511.8,0.00012329,2]
[406649856,1772033433303,-244.82813674,0.00012344,2]
[406649857,1772033433312,-1305.87259986,0.00012399,2]
[406649858,1772033433322,-371.85442695,0.000125,2]
[406649859,1772033433334,-461.2893,0.00012904,14]
[406649860,1772033433344,-4921.94016949,0.0001297,2]
[406649861,1772033433354,-573.96556984,0.0001297,2]
[406649862,1772033433481,284.89,0.0001,2]
[406649863,1772033433601,284.89,0.000101,2]
[406649864,1772033434067,284.89,0.000101,2]
[406649865,1772033434731,284.89,0.000101,2]
[406649866,1772033435257,284.89,0.000101,2]
[406649867,1772033435936,284.89,0.000101,2]
[406649868,1772033436463,284.89,0.000102,2]
[406649869,1772033437143,284.89,0.000102,2]
[406649874,1772033437825,284.89,0.000102,2]
[406649879,1772033438520,284.89,0.000102,2]
[406649887,1772033439113,-836.68990652,0.0001297,2]
[406649888,1772033439127,-507.10094952,0.0001297,2]
[406649889,1772033439224,284.89,0.000102,2]
[406649893,1772033439763,284.89,0.000103,2]
[406649931,1772033440727,284.89,0.000103,2]
[406649934,1772033440742,-32069.59653289,0.0001297,2]
[406649936,1772033440753,-170.97601606,0.00013069,2]
[406649938,1772033440764,-500.0,0.00013069,2]
[406649941,1772033440776,-482.36561578,0.00013069,2]
[406649943,1772033440787,-10181.97071281,0.00013073,2]
[406649945,1772033440798,-829.36567554,0.00013073,2]
[406649947,1772033440809,-272.98785264,0.00013173,2]
[406649949,1772033440821,-500.0,0.00013273,2]
[406649952,1772033440832,-500.0,0.00013273,2]
[406649954,1772033440850,-332.32185963,0.00013273,2]
[406649957,1772033440861,-357.7523127,0.00013273,2]
[406649959,1772033440872,-420.0,0.00013529,2]
[406649961,1772033440884,-1680.0,0.0001356,2]
[406649963,1772033440895,-241.38714912,0.00013698,2]
[406649966,1772033440908,-258.61285088,0.00013698,2]
[406649968,1772033440921,-459.24708276,0.00013699,2]
[406650089,1772033442082,284.89,0.000103,2]
[406650243,1772033443606,-844.27451717,0.00013699,2]
[406650244,1772033443619,-916.67782418,0.00013699,2]
[406650245,1772033443630,-790.99,0.00013699,2]
[406650246,1772033443645,-314.8061383,0.00013699,2]
[406650249,1772033443671,-7386.60494795,0.00013699,2]
[406650493,1772033446401,284.89,0.000103,2]
[406650494,1772033446436,-1460.63661624,0.00013699,2]
[406650496,1772033446446,-508.17400363,0.00013699,2]
[406650497,1772033446455,-165.78854723,0.00013699,2]
[406650498,1772033446465,-500.0,0.00013699,2]
[406650499,1772033446474,-206.15666145,0.00013699,2]
[406650500,1772033446483,-171.78079027,0.00013699,2]
[406650501,1772033446492,-500.0,0.00013699,2]